Cogmind - Beta 17.1 @@@ ROGUE MODE // 2026.09.04 @ 06:00:38 Player: Sunvar Result: Self-destructed Performance ------------- Evolutions (2) 1000 Regions Visited (7) 1400 Robots Destroyed (117) 585 Value Destroyed (2482) 2482 Prototype IDs (7) 140 Alien Tech Used (0) 0 Bonus (287) 287 TOTAL SCORE: 5894 Bonus ------- High Alert Combat Kills 409 Follower Combat Kills 14 Friendly Fire -136 Cogmind --------- Core Integrity 436/550 Matter 270/300 Energy 150/150 System Corruption 1% Temperature Cool (0) Movement Treading (213) Ox1 Location -8/Materials Parts ------- > --- POWER (1) -------- Light Angular Momentum Engine > --- PROPULSION (3) --- Light Treads Light Treads Improved Treads > --- UTILITY (4) ------ Cooling System High-capacity Storage Unit Seismic Detector Hardened Light Armor Plating > --- WEAPON (3) ------- Advanced Beam Rifle Heavy Assault Rifle Improved Assault Rifle > --- INVENTORY (20) --- Nuclear Core Nuclear Core Light Treads Light Treads Light Treads Huge Storage Unit Large Matter Pod (150) Advanced Targeting Computer ECM Suite Hardened Light Armor Plating Hardened Light Armor Plating Hacking Suite Hacking Suite Hacking Suite Heavy Assault Rifle Improved Assault Rifle Improved Assault Rifle Mini Grenade Launcher Mini Grenade Launcher Great Maul Peak State ------------ > --- POWER ------------ Light Angular Momentum Engine > --- PROPULSION ------- Light Treads Light Treads Improved Treads > --- UTILITY ---------- Cooling System High-capacity Storage Unit Seismic Detector Hardened Light Armor Plating > --- WEAPON ----------- Advanced Beam Cannon Heavy Assault Rifle Enhanced Autogun > --- INVENTORY -------- Nuclear Core Nuclear Core Light Treads Light Treads Light Treads Huge Storage Unit Large Matter Pod Advanced Targeting Computer ECM Suite Hardened Light Armor Plating Hardened Light Armor Plating Hacking Suite Hacking Suite Hacking Suite Heavy Assault Rifle Improved Assault Rifle Improved Assault Rifle Mini Grenade Launcher Mini Grenade Launcher Great Maul [Rating: 28] Favorites ----------- Power Light Ion Engine Engine Light Ion Engine Power Core Nuclear Core Propulsion Light Treads Treads Light Treads Leg Aluminum Leg Utility Seismic Detector Device Seismic Detector Storage Large Storage Unit Protection Hardened Light Armor Plating Weapon Improved Assault Rifle Energy Gun Spread Laser Energy Cannon Advanced Beam Cannon Ballistic Gun Improved Assault Rifle Ballistic Cannon Light Cannon Launcher Mini Grenade Launcher Impact Weapon Great Maul Build | -11 -10 -10 -9 -9 -9 -8 -8 ------- Run | Yrd Mat Min Mat Min Exi Min Mat Slots Evolved 4 | . . . 2 . . . 2 Power . | . . . . . . . . Propulsion 1 | . . . . . . . 1 Utility 2 | . . . 1 . . . 1 Weapon 1 | . . . 1 . . . . Parts Attached 60 | 1 6 3 37 . . 2 11 Power 6 | . . . 5 . . . 1 Engine 5 | . . . 4 . . . 1 Core 1 | . . . 1 . . . . Reactor . | . . . . . . . . Propulsion 14 | . 2 . 6 . . 1 5 Treads 14 | . 2 . 6 . . 1 5 Leg . | . . . . . . . . Wheel . | . . . . . . . . Hover . | . . . . . . . . Flight . | . . . . . . . . Utility 17 | 1 2 2 12 . . . . Device 8 | 1 1 2 4 . . . . Storage 3 | . 1 . 2 . . . . Processor . | . . . . . . . . Hackware . | . . . . . . . . Protection 6 | . . . 6 . . . . Artifact . | . . . . . . . . Weapon 23 | . 2 1 14 . . 1 5 Energy Gun 3 | . . . 1 . . . 2 Energy Cannon 7 | . 1 1 4 . . . 1 Ballistic Gun 6 | . . . 4 . . . 2 Ballistic Cannon 3 | . 1 . 2 . . . . Launcher 3 | . . . 2 . . 1 . Special Weapon . | . . . . . . . . Impact Weapon 1 | . . . 1 . . . . Slashing Weapon . | . . . . . . . . Piercing Weapon . | . . . . . . . . Special Melee Weapon . | . . . . . . . . Unidentified Prototypes 5 | . . . 3 . . . 2 Parts Lost 5 | . . 1 3 . . . 1 Power 1 | . . . 1 . . . . Propulsion 1 | . . . 1 . . . . Utility 1 | . . 1 . . . . . Weapon 2 | . . . 1 . . . 1 Highest Loss Streak 2 | . . 1 2 . . . 1 To Critical Strikes . | . . . . . . . . Average Backups 16 | 6 11 14 16 20 20 20 19 Power . | 1 1 1 . 1 1 1 1 Propulsion 2 | 4 1 1 2 4 4 4 3 Utility 6 | . 4 5 6 8 8 8 8 Weapon 6 | 1 4 7 6 7 7 7 6 Tool/Special . | . . . . . . . . Unused Backups 44 | . 12 1 17 . . . 14 Power 4 | . . . 3 . . . 1 Propulsion 4 | . . . 1 . . . 3 Utility 18 | . 7 1 3 . . . 7 Weapon 18 | . 5 . 10 . . . 3 Tool/Special . | . . . . . . . . Average Slot Usage (%) 99 | . 99 99 99 100 100 100 99 Engine 8 | . 14 14 10 . . . 3 Core 2 | . . . . 11 11 11 5 Treads 23 | . 19 28 21 22 22 22 27 Leg 1 | . 7 . . . . . . Device 13 | . 14 13 13 11 11 11 17 Storage 11 | . 14 14 11 11 11 11 9 Protection 6 | . . . 8 11 11 11 9 Energy Gun 1 | . 3 . 2 . . . 1 Energy Cannon 11 | . 10 14 11 11 11 11 7 Ballistic Gun 11 | . 3 . 16 22 22 21 13 Ballistic Cannon 5 | . 10 14 2 . . . . Peak Build Rating 28 | 7 8 11 25 23 23 23 28 Average Rating 17 | 6 7 8 21 23 23 22 26 On Entrance 15 | 6 7 8 9 23 23 23 22 Avg Prop Armor Cover (%) . | . . . . . . . . Naked Turns . | . . . . . . . . Heaviest Build 67 | 12 30 32 66 64 64 64 67 Greatest Support 63 | 20 40 40 40 40 40 40 63 Greatest Overweight (x) 1 | . . . 1 1 1 1 1 Average Overweight (x) . | . . . . 1 1 1 . Largest Inventory Capacity 20 | 8 15 15 20 20 20 20 20 Average Capacity 16 | 8 12 15 17 20 20 20 20 Most Carried 20 | 7 15 15 20 20 20 20 20 Average Carried 16 | 6 11 14 16 20 20 20 19 Final Capacity 20 | 8 15 15 20 20 20 20 20 Final Carried 20 | 7 15 15 20 20 20 20 20 Class Distribution -------------------- 45% | Tank 39% | Mutant 5% | Scavenger-Tank 4% | Gunner 4% | Scavenger-Gunner Dominant Class ---------------- Mutant | -10/Materials Mutant | -10/Mines Tank | -9/Materials Tank | -9/Mines Tank | -9/Exiles Tank | -8/Mines Scavenger-Tank | -8/Materials Resources | -11 -10 -10 -9 -9 -9 -8 -8 ----------- Run | Yrd Mat Min Mat Min Exi Min Mat Matter Collected 2445 | 222 280 151 1355 . . 160 277 Remotely . | . . . . . . . . Salvage Created 4055 | 96 445 127 2715 . . 198 474 Parts 230 | 7 24 8 154 . . 13 24 Haulers Intercepted 11 | . 2 . 6 . . . 3 Recyclers Shooed 2 | . . . 1 . . . 1 Parts Field Recycled . | . . . . . . . . Retrieved Matter . | . . . . . . . . Parts Self-Destructed . | . . . . . . . . Prevented . | . . . . . . . . Parts Restored . | . . . . . . . . Kills | -11 -10 -10 -9 -9 -9 -8 -8 ------- Run | Yrd Mat Min Mat Min Exi Min Mat Combat Hostiles Destroyed 77 | . 5 4 54 . . 8 6 Guns 31 | . 5 . 18 . . 3 5 Cannons 33 | . . 4 25 . . 3 1 AOE 12 | . . . 10 . . 2 . Classes Destroyed 16 | 2 5 2 7 . . . . Worker 6 | . . 2 4 . . . . Builder 2 | . . . 2 . . . . Tunneler 3 | 1 . 1 1 . . . . Hauler 11 | . 2 . 6 . . . 3 Recycler 9 | 1 2 . 5 . . . 1 Mechanic 1 | . . . 1 . . . . Operator 5 | . 2 . 2 . . . 1 Watcher 3 | . . . 3 . . . . Swarmer 26 | . 3 . 15 . . 5 3 Grunt 37 | . 2 2 27 . . 3 3 Brawler 3 | . . . 2 . . 1 . Duelist 1 | . . . 1 . . . . Protector 1 | . . . 1 . . . . Sentry 8 | . . . 8 . . . . Federalist 1 | . 1 . . . . . . Assembled 2 | . . 2 . . . . . Best Kill Streak 12 | 2 3 2 12 . . 4 3 Combat Bots Only 6 | . 3 2 6 . . 4 3 Max Kills in Single Turn 4 | 1 1 1 4 . . 2 1 Gunslinging . | . . . . . . . . Exploded 3 | . . . 3 . . 2 . Melee . | . . . . . . . . Uniques/NPCs Destroyed . | . . . . . . . . Combat | -11 -10 -10 -9 -9 -9 -8 -8 -------- Run | Yrd Mat Min Mat Min Exi Min Mat Hostile Shots Fired 319 | . 19 18 231 . . 19 32 Missed 90 | . 5 5 63 . . 5 12 Hits 229 | . 14 13 168 . . 14 20 Melee 10 | . . 7 3 . . . . Projectile 219 | . 14 6 165 . . 14 20 Critical Strikes 11 | . 1 . 8 . . 1 1 Damage Taken 2962 | . 157 280 1981 . . 249 295 Core 481 | . 42 14 275 . . 36 114 Absorbed by Shields . | . . . . . . . . Core Remaining (%) 66 | 100 . 77 . . . 22 . Volleys Fired 233 | 4 36 22 132 . . 13 26 Largest 3 | 2 2 2 3 . . 3 3 Hottest 201 | 60 90 90 201 . . 114 114 Shots Fired 613 | 8 69 44 381 . . 33 78 Gun 334 | 8 45 . 208 . . 20 53 Cannon 269 | . 24 44 166 . . 10 25 Launcher 10 | . . . 7 . . 3 . Special . | . . . . . . . . Kinetic 331 | 4 36 22 197 . . 20 52 Thermal 272 | 4 33 22 177 . . 10 26 Explosive 10 | . . . 7 . . 3 . Electromagnetic . | . . . . . . . . Robot Hit Streak 15 | 3 5 7 15 . . 6 9 Robot Miss Streak 13 | 1 8 4 13 . . 3 3 Penetration Max . | . . . . . . . . Secondary Targets 2 | . 2 . . . . . . Max Gunslinging Chain 1 | . 1 . . . . . . Shots Hit Robots 331 | 5 33 21 212 . . 18 42 Core Hits 182 | 3 17 10 118 . . 18 16 Critical Kills 5 | . 1 . 3 . . . 1 Critical Parts Destroyed 2 | . . . 2 . . . . Critical Strikes 8 | . 2 . 5 . . . 1 Meltdown 2 | . . . 2 . . . . Destroy 5 | . 1 . 3 . . . 1 Blast 1 | . 1 . . . . . . Melee Attacks 14 | . . . 3 . . . 11 Impact 14 | . . . 3 . . . 11 Slashing . | . . . . . . . . Piercing . | . . . . . . . . Sneak Attacks . | . . . . . . . . Combat Hostiles . | . . . . . . . . Follow-up Attacks . | . . . . . . . . Damage Inflicted 7286 | 73 526 366 4919 . . 681 721 Guns 2608 | 73 310 . 1685 . . 126 414 Cannons 3129 | . 216 363 2078 . . 165 307 Explosions 1527 | . . . 1137 . . 390 . Melee . | . . . . . . . . Ramming 22 | . . 3 19 . . . . Kinetic 2521 | 27 305 171 1478 . . 126 414 Thermal 3216 | 46 221 192 2285 . . 165 307 Explosive 1527 | . . . 1137 . . 390 . Electromagnetic . | . . . . . . . . Impact . | . . . . . . . . Slashing . | . . . . . . . . Piercing . | . . . . . . . . Highest Corruption 2 | . . 2 . . . . 1 Average Corruption 1 | . . 2 . . . . 1 Corruption Purged . | . . . . . . . . Corruption Blocked . | . . . . . . . . Effects 15 | . . 10 . . . . 5 Message Errors 3 | . . 2 . . . . 1 Matter Fused 4 | . . 3 . . . . 1 Heat Flow Errors 1 | . . . . . . . 1 Energy Discharges 2 | . . 1 . . . . 1 Data Loss (minor) 5 | . . 4 . . . . 1 Overload Shots . | . . . . . . . . Overflow Damage 71 | . 7 . 34 . . 30 . Projectiles 11 | . 7 . 4 . . . . Explosions 60 | . . . 30 . . 30 . Melee . | . . . . . . . . Knockbacks 4 | . . 4 . . . . . Impact 1 | . . 1 . . . . . Kinetic 3 | . . 3 . . . . . Secondary . | . . . . . . . . Self-Inflicted Damage 128 | . . . 31 . . 97 . Shots 5 | . . . 2 . . 3 . Rammed 4 | . . 1 3 . . . . Targets Rammed 4 | . . 1 3 . . . . Kicked . | . . . . . . . . Crushed . | . . . . . . . . Highest Temperature 408 | . 90 259 408 . . 314 118 Average Temperature 98 | . 32 101 108 . . 129 27 Received Heat Transfer 1086 | . 87 39 744 . . 72 144 Effects 7 | . . 3 4 . . . . Shutdowns 2 | . . . 2 . . . . Energy Bleed 1 | . . . 1 . . . . Interference 3 | . . 3 . . . . . Damage (minor) 1 | . . . 1 . . . . Siege Activations . | . . . . . . . . Martial Activations . | . . . . . . . . Shielding Activations . | . . . . . . . . Robots Disrupted . | . . . . . . . . Combat Hostiles . | . . . . . . . . Robots Corrupted . | . . . . . . . . Combat Hostiles . | . . . . . . . . Parts Fried . | . . . . . . . . Impact Corruptions . | . . . . . . . . Robots Melted 2 | . . . 2 . . . . Combat Hostiles 1 | . . . 1 . . . . Parts Melted 13 | 1 1 . 11 . . . . Heat Transferred 5809 | 100 485 407 3966 . . 296 555 Parts Sabotaged . | . . . . . . . . Parts Stolen . | . . . . . . . . Parts Stripped . | . . . . . . . . Power Chain Reactions . | . . . . . . . . Alert | -11 -10 -10 -9 -9 -9 -8 -8 ------- Run | Yrd Mat Min Mat Min Exi Min Mat Maximum Alert Level 3 | . . . 3 1 . . . Low Security (%) 67 | 100 100 100 28 . . 100 100 Level 1 5 | . . . 5 100 . . . Level 2 15 | . . . 38 . . . . Level 3 11 | . . . 28 . . . . Level 4 . | . . . . . . . . Level 5 . | . . . . . . . . High Security . | . . . . . . . . Max Security . | . . . . . . . . Sterilizations 1 | . . . 1 . . . . Peak Influence 972 | 10 100 44 972 374 . 112 64 Initial 374 | . . . . 374 . . 4 Average 207 | 2 17 3 462 317 . 62 12 Influence Increases 2303 | 10 186 65 1562 . . 282 198 Destroy 0b10 Robot/C 1520 | . 100 40 1060 . . 200 120 Destroy 0b10 Robot/NC 210 | 10 30 15 125 . . 5 25 Destroy Leader 328 | . 24 10 238 . . 30 26 Allied During Kill 9 | . . . . . . 9 . Successful Hack 30 | . 17 . 13 . . . . Disable Machine 75 | . 15 . 30 . . 15 15 Destroy Structure 101 | . . . 66 . . 23 12 Lose Combat Pursuer 30 | . . . 30 . . . . Influence Decreases 2301 | 10 186 65 602 706 254 270 208 Entered New Map 848 | . . . . 586 254 . 8 Time Decay 1373 | 10 186 65 572 120 . 230 190 Lost Part 40 | . . . 30 . . . 10 Lost Ally 40 | . . . . . . 40 . Squads Dispatched 18 | . 3 . 8 . . . 7 Investigation 3 | . 1 . 2 . . . . Extermination . | . . . . . . . . Reinforcement 10 | . 2 . 2 . . . 6 Assault 4 | . . . 4 . . . . Garrison 1 | . . . . . . . 1 Intercept . | . . . . . . . . Searches Triggered . | . . . . . . . . Construction Impeded 1 | . . . . . . . 1 Haulers Reinforced . | . . . . . . . . Active Scanning Responses . | . . . . . . . . Cargo Convoy Interrupts . | . . . . . . . . Stealth | -11 -10 -10 -9 -9 -9 -8 -8 --------- Run | Yrd Mat Min Mat Min Exi Min Mat Distress Signals 7 | . 2 . 4 . . . 1 Communications Jammed . | . . . . . . . . Distress Signals . | . . . . . . . . Times Spotted 112 | . 21 4 68 . . 10 9 Peak Tracking Total 6 | . 4 1 6 . . 3 5 Tactical Retreats 2 | . . . 2 . . . . Traps | -11 -10 -10 -9 -9 -9 -8 -8 ------- Run | Yrd Mat Min Mat Min Exi Min Mat Traps Triggered 4 | . . 1 2 . . . 1 Indirectly . | . . . . . . . . Trap Hack Attempts . | . . . . . . . . Triggered . | . . . . . . . . Disarmed . | . . . . . . . . Reprogrammed . | . . . . . . . . Reused . | . . . . . . . . Traps Extracted . | . . . . . . . . Installed . | . . . . . . . . Triggered . | . . . . . . . . Machines | -11 -10 -10 -9 -9 -9 -8 -8 ---------- Run | Yrd Mat Min Mat Min Exi Min Mat Machines Disabled 6 | . 1 . 3 . . 1 1 Max in Single Turn 1 | . 1 . 1 . . . 1 Machines Repaired . | . . . . . . . . Machines Dismantled . | . . . . . . . . Machines Sabotaged . | . . . . . . . . Overloaded Fab Kills . | . . . . . . . . Hacking | -11 -10 -10 -9 -9 -9 -8 -8 --------- Run | Yrd Mat Min Mat Min Exi Min Mat Machines Accessed 14 | . 4 1 8 . 1 . . Terminals 11 | . 4 . 7 . . . . Fabricators . | . . . . . . . . Repair Stations . | . . . . . . . . Recycling Units . | . . . . . . . . Scanalyzers 1 | . . . 1 . . . . Garrison Access . | . . . . . . . . Total Hacks 34 | . 8 1 24 . 1 . . Successful 16 | . 3 1 11 . 1 . . Failed 18 | . 5 . 13 . . . . Catastrophic 4 | . 3 . 1 . . . . Database Lockouts . | . . . . . . . . Manual 10 | . 1 . 9 . . . . Terminals 28 | . 8 . 20 . . . . Fabricators . | . . . . . . . . Repair Stations . | . . . . . . . . Recycling Units . | . . . . . . . . Scanalyzers 4 | . . . 4 . . . . Garrison Access . | . . . . . . . . Terminal Hacks 9 | . 3 1 4 . 1 . . Record 1 | . . . . . 1 . . Prototype ID Bank 1 | . . . 1 . . . . Open Door 1 | . . 1 . . . . . Unreport Threat 1 | . 1 . . . . . . Locate Traps 1 | . . . 1 . . . . Hauler Manifests 2 | . 1 . 1 . . . . Zone Layout 2 | . 1 . 1 . . . . Fabricator Hacks . | . . . . . . . . Repair Station Hacks . | . . . . . . . . Recycling Unit Hacks . | . . . . . . . . Scanalyzer 3 | . . . 3 . . . . Retrieve Study 3 | . . . 3 . . . . Garrison Access Hacks . | . . . . . . . . Unauthorized Hacks 4 | . . . 4 . . . . Terminals 4 | . . . 4 . . . . Botnet 1 | . . . 1 . . . . Skim 3 | . . . 3 . . . . Fabricators . | . . . . . . . . Repair Stations . | . . . . . . . . Recycling Units . | . . . . . . . . Scanalyzers . | . . . . . . . . Garrison Access . | . . . . . . . . Data Cores Recovered . | . . . . . . . . Used . | . . . . . . . . Hacking Detections 9 | . 3 . 6 . . . . Full Trace Events . | . . . . . . . . Feedback Events . | . . . . . . . . Feedback Blocked . | . . . . . . . . Robot Schematics Acquired . | . . . . . . . . Robots Built . | . . . . . . . . Authchips . | . . . . . . . . Time . | . . . . . . . . Total Robot Build Rating . | . . . . . . . . Part Schematics Acquired . | . . . . . . . . Parts Built . | . . . . . . . . Authchips . | . . . . . . . . Time . | . . . . . . . . Total Part Build Rating . | . . . . . . . . Part Studies Acquired 3 | . . . 3 . . . . Parts Repaired . | . . . . . . . . Time . | . . . . . . . . Parts Recycled . | . . . . . . . . Recycled Matter . | . . . . . . . . Retrieved Matter . | . . . . . . . . Retrieved Components . | . . . . . . . . Parts Scanalyzed . | . . . . . . . . Part Schematics Acquired . | . . . . . . . . Parts Damaged . | . . . . . . . . Bothacking | -11 -10 -10 -9 -9 -9 -8 -8 ------------ Run | Yrd Mat Min Mat Min Exi Min Mat Used RIF Installer . | . . . . . . . . Robots Hacked . | . . . . . . . . Non-combat . | . . . . . . . . Combat . | . . . . . . . . Robot Hacks Applied . | . . . . . . . . Relay Couplers Released . | . . . . . . . . Fabnet Peak Effective % . | . . . . . . . . Robots Rewired . | . . . . . . . . Allies Hacked . | . . . . . . . . Hacks Repelled . | . . . . . . . . Allies | -11 -10 -10 -9 -9 -9 -8 -8 -------- Run | Yrd Mat Min Mat Min Exi Min Mat Total Allies 3 | . . . . 3 . . . Largest Group 3 | . . . . 3 3 3 . Highest-Rated Group 40 | . . . . 40 40 40 . Highest-Rated Ally 16 | . . . . 16 16 16 . Total Orders . | . . . . . . . . Ally Attacks 11 | . . . . . . 11 . Total Damage 80 | . . . . . . 80 . Kills 3 | . . . . . . 3 . Allies Corrupted . | . . . . . . . . Allies Melted . | . . . . . . . . Intel | -11 -10 -10 -9 -9 -9 -8 -8 ------- Run | Yrd Mat Min Mat Min Exi Min Mat Active Infowar (turns) 4320 | 24 1117 1120 898 . . 302 859 Seismic 4320 | 24 1117 1120 898 . . 302 859 Robot Analysis Total . | . . . . . . . . Derelict Logs Recovered 2 | . . 2 . . . . . Drone Launches . | . . . . . . . . Drone Recoveries . | . . . . . . . . Exploration | -11 -10 -10 -9 -9 -9 -8 -8 ------------- Run | Yrd Mat Min Mat Min Exi Min Mat Turns Passed 6889 | 44 1117 1150 2616 242 378 483 859 Spaces Moved 3121 | 25 637 656 953 122 189 211 328 Core . | . . . . . . . . Treads 2937 | . 478 656 953 122 189 211 328 Legs 184 | 25 159 . . . . . . Wheels . | . . . . . . . . Hover . | . . . . . . . . Flight . | . . . . . . . . Fastest Speed 120 | 120 120 160 160 200 200 200 160 Average Speed 184 | 120 150 160 209 200 200 200 207 Slowest Speed 240 | 120 160 160 240 200 200 200 213 Overloaded Moves . | . . . . . . . . Propulsion Burnouts . | . . . . . . . . Robots Hopped . | . . . . . . . . Potential Cave-ins . | . . . . . . . . Cave-ins Triggered . | . . . . . . . . Exploration Rate (%) 54 | 3 95 92 82 25 59 47 29 Regions Visited 7 Branch Regions 4 Pre-discovered Areas . | . . . . . . . . Known Exits Taken 1 | . . . . . . 1 . Unknown Exits Taken 6 | 1 1 1 1 1 1 . . Scrap Searched 2 | . . 1 . . . 1 . Spaces Dug 14 | . . . 3 . . . 11 Terrain Destroyed 105 | . . . 60 . . 34 11 Melee 14 | . . . 3 . . . 11 Projectile . | . . . . . . . . AOE 91 | . . . 57 . . 34 . Terrain Rammed . | . . . . . . . . Walls Destroyed . | . . . . . . . . Machines Disabled . | . . . . . . . . Actions | -11 -10 -10 -9 -9 -9 -8 -8 --------- Run | Yrd Mat Min Mat Min Exi Min Mat Total 3750 | 30 741 713 1282 121 190 245 428 Wait 143 | . 17 25 49 . 2 15 35 Move 3114 | 24 636 655 952 121 188 210 328 Hop . | . . . . . . . . Pick Up 69 | 1 25 3 37 . . . 3 Fast Attach 18 | 1 2 . 11 . . . 4 Attach 13 | . 1 2 7 . . . 3 Detach 3 | . . . 3 . . . . Swap 57 | . 3 2 38 . . 6 8 Drop 82 | . 21 3 47 . . 1 10 Fire 233 | 4 36 22 132 . . 13 26 Melee 14 | . . . 3 . . . 11 Ram . | . . . . . . . . Kick . | . . . . . . . . Crush 4 | . . 1 3 . . . . Escape Stasis . | . . . . . . . . Rewire . | . . . . . . . . Trap . | . . . . . . . . Miscellaneous . | . . . . . . . . Route ------- -11/Scrapyard -10/Materials (discovered 5 exits: *Mat x3 / *Min / [*Sub]) -10/Mines (discovered 2 exits: *Mat x2) -9/Materials (discovered 4 exits: *Mat / [*Min] / [*Sto x2]) -9/Mines -9/Exiles -8/Mines -8/Materials History --------- Turn | Location | Event 14 | -11/Scrapyard | Discovered new exit (range 3) 45 | -11/Scrapyard | Entered Materials 46 | -10/Materials | Met a group of wandering Federalists 151 | -10/Materials | Lost 3 allies 158 | -10/Materials | Discovered new exit (range 16) 307 | -10/Materials | Build established: Mutant 543 | -10/Materials | Discovered new exit (range 15) 629 | -10/Materials | Discovered new exit (range 13) 793 | -10/Materials | Discovered new exit (range 7) 796 | -10/Materials | Discovered new exit (range 13) 1162 | -10/Materials | Entered Mines 1197 | -10/Mines | Met a Derelict who couldn't figure out how to use a Trap Extractor 1237 | -10/Mines | Discovered new exit (range 3) 1469 | -10/Mines | Assembled infested the area 1474 | -10/Mines | Assisted by a Guerilla fighting off Assembled 1593 | -10/Mines | Learned location of 1 exit from Materials 2291 | -10/Mines | Discovered new exit (range 15) 2312 | -10/Mines | Entered Materials 2312 | -9/Materials | Evolved 2 slots: Utility x1, Weapon x1 2313 | -9/Materials | Identified exit to Materials 2427 | -9/Materials | Discovered new exit (range 14) 3036 | -9/Materials | Discovered new exit (range 13) 3172 | -9/Materials | Core integrity fell below 50% 3490 | -9/Materials | Build established: Tank 3512 | -9/Materials | First assault squad dispatched 4410 | -9/Materials | Discovered new exit (range 9) 4730 | -9/Materials | Sterilization system engaged 4730 | -9/Materials | Non-combat units ordered to evacuate 4830 | -9/Materials | Combat units ordered to evacuate 4928 | -9/Materials | Entered Mines 4940 | -9/Mines | Assisted by bots powering up and referring to "LRC-V3" 5091 | -9/Mines | Met a Derelict bent on vengeance 5156 | -9/Mines | Deemed a non-threat by the Exiles lab entrance 5158 | -9/Mines | Discovered new exit (range 5) 5170 | -9/Mines | Entered Exiles 5170 | -9/Exiles | Found Exiles lab abandoned 5170 | -9/Exiles | Accompanied by 3 allies 5530 | -9/Exiles | Discovered new exit (range 10) 5548 | -9/Exiles | Entered Mines 5548 | -8/Mines | Accompanied by 3 allies 5669 | -8/Mines | Discovered exit to Materials (range 11) 6031 | -8/Mines | Entered Materials 6031 | -8/Materials | Evolved 2 slots: Propulsion x1, Utility x1 6337 | -8/Materials | Garrison activated, responded to threat 6380 | -8/Materials | Build established: Mutant 6644 | -8/Materials | Met 7R-MNS 6812 | -8/Materials | Build established: Scavenger-Tank 6890 | -8/Materials | Self-destructed Last Messages --------------- 06712_ U-05 Engineer works on Matter Pump. 06713_ Dropped Lgt. Treads+. 06714_ Acquired 10 matter. 06718_ U-05 Engineer works on Matter Pump. 06724_ Acquired 6 matter. 06729_ A-02 Transporter destroyed. 06734_ K-01 Serf collects debris. 06739_ Dropped Adv. Beam Cannon. 06739_ O-24 Administrator: "IFF HANDSHAKE FAILED. SECURING TERMINAL." 06742_ Dropped Lgt. Treads+. 06742_ ALERT: Hostiles spotted, dispatching reinforcements to Terminal M012. 06744_ System corrupted: Heat flow error (+159). 06748_ Dropped Lgt. Treads+. 06751_ K-01 Serf collects debris. 06788_ Dropped Adv. Beam Cannon. 06791_ Acquired Adv. Beam Rifle. 06814_ O-24 Administrator destroyed. 06814_ Terminal disabled. 06819_ Acquired 22 matter. Map ----- +----------------------------------------------------+ | ????????????????# ???????????????? | | ????????????????#=! "" #?????????????? | | ##??????????????#%! Y" #?????????????? | | ?????????????#! "" #?????????????? | | " ?????????????# """ ##########????? | | " * ###+######### # = #????? | | #=%!][[!%*%=% # ##???? | | /!=*]############## ######## "#???? | | " # ===#????????????## ## !!!# """ ##???? | | " [# !*#?????????????# ## !!!# """"" #????? | | " ?## #######????????# ## ! " """"" #????? | | ??# # #????????# ## # """"" #????? | | ##???# + "T" #????????# ## # """ #????? | | ?????# # # ???????# ## ! # ##???? | | ###### # [ # ???# ######+####+########## | | # !# %# | | #######??? """%+ ## | | # ##+######?????? """ # #? | | # ## #?????? """ #o ########### ###+####? | | # ## #?????? ?# #?????????# # ??? | | # """]/#??????###??# #?????????# #! #? | | T" # """ #???????????# +?????????# # #? | | " + """ #???????????#% #?????????##### """ #? | | # #??########## #?????????????# """ #? | | #+##########??# #?????????????# """ #? | | #???????# #########@##?????????????########? | | """ #???????# #?????? ?????????????????????? | | """ #???????# #???? ???????????????????? | | /""" #???????# #???# = ! | #??????????????????? | | ######### #???# #??????????????????? | | + #???# " " #??????????????????? | | ###########???# "T" ! #??????????????????? | | " #?????????????# """ #??????????????????? | | "" #?????????????# #??????????????????? | | #######??????????????##?#######??????????????????? | | | | | | | | | | | | | | | | | | | | | | | | | | | | | | | +----------------------------------------------------+ Best States ------------- Heat Dissipation 56 Energy Generation 18 Energy Capacity 280 Matter Stores 300 Matter Capacity 300 Sight Range 16 Terrain Scan Density 10 Armor Coverage 150 Evasion (%) 55 Recoil Reduction 3 Item Schematics ----------------- None Robot Schematics ------------------ None Fabricated ------------ Nothing Repaired ---------- Nothing Studied --------- Lgt. Treads | -9/Materials | Hacked Mni. Grenade Launcher | -9/Materials | Hacked Hvy. Assault Rifle | -9/Materials | Hacked Alien Tech Used ----------------- None Achievements -------------- None Challenges ------------ None Game ------ Seed SmartSegregatorBattery Manual? 0 Play Time 00:46:29 Cumulative 242.6 hours Start 2026.08.31 @ 22:33:53 End 2026.09.04 @ 06:00:38 Sessions 5 Manual Loads 0 Difficulty Rogue Special Mode None Game No. 159 Rogue 159 Adventurer 0 Explorer 0 Win Type - Total 21 Types 10/0/3/8/0/0/0/0/0/0 Lore% 71 Gallery% 61 Achievement% 43 Wizard Run 0 Options --------- Layout 0 ASCII 0 Keyboard 1 Movement Numpad Keybinds 0 Fullscreen 1 Font 36/Proggy Map View 76x50 Zoom Use 0% Tactical HUD 1 Map Filters NONE Filters NONE Steam 1 RUN: 26748d1e-cb69-40bb-b4f7-a041fda5bd25